bitfinex/quotes_ETHUSD_20250807
["timestamp","ask_amount","ask_price","bid_price","bid_amount"]
[1754525423596,7.138,3677.2,3677.1,0.47870001]
[1754525424559,10.79336045,3677.2,3677.1,1e-08]
[1754525424860,11.78362913,3677.2,3677.1,1e-08]
[1754525425034,12.28072913,3677.2,3677.1,1e-08]
[1754525426050,8.14272913,3677.2,3677.1,1e-08]
[1754525426269,12.28072913,3677.2,3677.1,1e-08]
[1754525426569,6.79136045,3677.2,3677.1,1e-08]
[1754525426781,10.92936045,3677.2,3677.1,1e-08]
[1754525433586,6.26953441,3677.1,3677.0,1e-08]
[1754525433772,7.20543441,3677.1,3677.0,1e-08]
[1754525434468,7.31445541,3677.1,3677.0,1e-08]
[1754525434691,9.08198797,3677.1,3677.0,1e-08]
[1754525439334,11.73408797,3677.1,3677.0,1e-08]
[1754525439490,12.17288797,3677.1,3677.0,1e-08]
[1754525439824,12.66998797,3677.1,3677.0,1e-08]
[1754525441798,12.23118797,3677.1,3677.0,1e-08]
[1754525441999,11.73408797,3677.1,3677.0,1e-08]
[1754525442390,12.17288797,3677.1,3677.0,1e-08]
[1754525442836,8.03488797,3677.1,3677.0,1e-08]
[1754525443004,11.73408797,3677.1,3677.0,1e-08]
[1754525443324,12.17288797,3677.1,3677.0,1e-08]
[1754525443630,12.66998797,3677.1,3677.0,1e-08]
[1754525444542,12.17288797,3677.1,3677.0,1e-08]
[1754525445333,12.66998797,3677.1,3677.0,1e-08]
[1754525446553,12.17288797,3677.1,3677.0,1e-08]
[1754525447012,12.66998797,3677.1,3677.0,1e-08]
[1754525447207,12.17288797,3677.1,3677.0,1e-08]
[1754525447599,5.82855541,3677.1,3677.0,1e-08]
[1754525447800,10.10155541,3677.1,3677.0,0.46170001]
[1754525448037,5.96455541,3677.1,3677.0,0.46170001]
[1754525448235,10.10155541,3677.1,3677.0,0.46170001]
[1754525448431,5.96455541,3677.1,3677.0,0.46170001]
[1754525448743,10.10155541,3677.1,3677.0,0.46170001]
[1754525448926,10.10155541,3677.1,3677.0,1e-08]
[1754525448927,5.96455541,3677.1,3677.0,1e-08]
[1754525449112,10.54035541,3677.1,3677.0,1e-08]
[1754525449312,12.18807963,3677.1,3677.0,1e-08]
[1754525449510,12.68517963,3677.1,3677.0,1e-08]
[1754525450307,12.64107963,3677.1,3677.0,1e-08]
[1754525451244,12.18807963,3677.1,3677.0,1e-08]
[1754525451415,10.54035541,3677.1,3677.0,1e-08]
[1754525451612,10.10155541,3677.1,3677.0,1e-08]
[1754525451938,10.10155541,3677.1,3677.0,0.47870001]
[1754525452507,10.10155541,3677.1,3677.0,1e-08]
[1754525453024,10.54705541,3677.1,3677.0,1e-08]
[1754525453761,11.83252779,3677.1,3677.0,1e-08]
[1754525456439,12.38252779,3677.1,3677.0,1e-08]
[1754525467877,11.92952779,3677.1,3677.0,1e-08]
[1754525468260,12.38252779,3677.1,3677.0,1e-08]
[1754525471419,22.22033474,3677.1,3677.0,1e-08]
[1754525473115,22.22133474,3677.1,3677.0,1e-08]
[1754525482101,21.76833474,3677.1,3677.0,1e-08]
[1754525482731,22.22993474,3677.1,3677.0,1e-08]
[1754525486052,21.76833474,3677.1,3677.0,1e-08]
[1754525486425,21.32283474,3677.1,3677.0,0.49360001]
[1754525486728,21.32083474,3677.1,3677.0,0.49360001]
[1754525488460,21.32083474,3677.1,3677.0,1e-08]
[1754525488755,21.74853474,3677.1,3677.0,1e-08]
[1754525491133,22.21013474,3677.1,3677.0,1e-08]
[1754525491977,21.74853474,3677.1,3677.0,1e-08]
[1754525492272,22.21013474,3677.1,3677.0,1e-08]
[1754525493572,22.46466169,3677.1,3677.0,1e-08]
[1754525496487,22.46468831,3677.1,3677.0,1e-08]
[1754525499459,22.46468245,3677.1,3677.0,1e-08]
[1754525502303,22.46468245,3677.1,3676.3,0.002]
[1754525502304,0.55,3676.7,3676.3,0.002]
[1754525502587,6.2697563,3676.8,3676.3,0.002]
[1754525502588,6.27005222,3676.4,3676.3,0.002]
[1754525502794,10.79459993,3676.4,3676.3,0.002]
[1754525503000,13.93948926,3676.4,3676.3,0.002]
[1754525503189,16.4523344,3676.4,3676.3,1e-08]
[1754525503357,17.2701644,3676.4,3676.3,1e-08]
[1754525503552,17.7317644,3676.4,3676.3,1e-08]
[1754525505187,17.2701644,3676.4,3676.3,1e-08]
[1754525505490,17.01561669,3676.4,3676.3,1e-08]
[1754525505695,17.26985353,3676.4,3676.3,1e-08]
[1754525506809,12.70815353,3676.4,3676.3,1e-08]
[1754525507097,14.32930839,3676.4,3676.3,0.49360001]
[1754525508795,9.64530839,3676.4,3676.3,0.49360001]
[1754525509007,13.77930839,3676.4,3676.3,0.49360001]
[1754525509292,14.75700839,3676.4,3676.3,1e-08]
[1754525509669,14.32930839,3676.4,3676.3,1e-08]
[1754525509867,14.32930839,3676.4,3676.3,0.49360001]
[1754525513113,10.19530839,3676.4,3676.3,0.49360001]
[1754525513315,14.32930839,3676.4,3676.3,0.49360001]
[1754525513919,14.32930839,3676.4,3676.3,1e-08]
[1754525514511,14.32930839,3676.4,3676.3,0.46530001]
[1754525515415,10.19530839,3676.4,3676.3,0.46530001]
[1754525515606,14.32930839,3676.4,3676.3,0.46530001]
[1754525517718,10.19530839,3676.4,3676.3,0.46530001]
[1754525517926,14.32930839,3676.4,3676.3,0.46530001]
[1754525519023,14.76610839,3676.4,3676.3,1e-08]
[1754525519326,16.56289965,3676.4,3676.3,1e-08]
[1754525520396,16.56270743,3676.4,3676.3,1e-08]
[1754525521352,12.42870743,3676.4,3676.3,1e-08]
[1754525521624,16.56170743,3676.4,3676.3,1e-08]
[1754525522428,12.42870743,3676.4,3676.3,1e-08]
[1754525522623,16.56170743,3676.4,3676.3,1e-08]
[1754525523033,12.42870743,3676.4,3676.3,1e-08]
[1754525523324,16.56170743,3676.4,3676.3,1e-08]
[1754525523529,23.74170743,3676.4,3676.3,1e-08]
[1754525525729,31.74769516,3676.4,3676.3,1e-08]
[1754525526833,27.61469516,3676.4,3676.3,1e-08]
[1754525527134,31.74769516,3676.4,3676.3,1e-08]
[1754525528794,30.16621858,3676.4,3676.3,1e-08]
[1754525529023,30.64811858,3676.4,3676.3,1e-08]
[1754525530133,26.51511858,3676.4,3676.3,1e-08]
[1754525530338,30.64811858,3676.4,3676.3,1e-08]
[1754525531644,30.39407396,3676.4,3676.3,1e-08]
[1754525532732,26.26107396,3676.4,3676.3,1e-08]
[1754525532914,29.91217396,3676.4,3676.3,1e-08]
[1754525534604,30.39407396,3676.4,3676.3,1e-08]
[1754525537920,36.81858511,3676.4,3676.3,1e-08]
[1754525539060,36.81858511,3676.4,3674.1,0.499]
[1754525539061,0.55,3676.1,3674.1,0.499]
[1754525539228,0.55,3676.1,3675.2,0.4653]
[1754525539229,5.72086632,3675.3,3675.2,0.4653]
[1754525539420,16.27737747,3675.3,3675.2,0.4653]
[1754525539755,17.09529047,3675.3,3675.2,0.4653]
[1754525540725,10.67077932,3675.3,3675.2,0.4653]
[1754525541124,2.7210201,3675.1,3674.3,2.72160571]
[1754525541379,7.132,3675.0,3674.4,0.59423513]
[1754525541658,3.0,3674.8,3674.3,2.72153589]
[1754525541856,4.132,3674.8,3674.3,2.72153589]
[1754525542232,0.817913,3675.3,3674.2,2.72163225]
[1754525542421,3.0,3675.1,3674.3,0.02721606]
[1754525542619,4.132,3675.0,3674.7,2.72129711]
[1754525542817,4.132,3675.1,3674.8,0.27212971]
[1754525543060,4.132,3675.1,3674.9,0.372]
[1754525544765,3.0,3675.0,3674.9,0.372]
[1754525545267,5.72109024,3675.0,3674.3,2.72153725]
[1754525545555,5.72109024,3675.0,3674.4,0.372]
[1754525545556,9.85309024,3675.0,3674.4,0.372]
[1754525545868,9.85309024,3675.0,3674.5,0.30936627]
[1754525546260,9.85309024,3675.0,3674.6,0.372]
[1754525546467,9.85309024,3675.0,3674.5,0.30936627]
[1754525546777,7.132,3675.0,3674.5,0.68136627]
[1754525546970,7.132,3675.0,3674.6,0.372]
[1754525547179,3.0,3675.0,3674.7,0.34028986]
[1754525547333,4.132,3674.9,3674.8,0.372]
[1754525547718,4.132,3674.9,3674.7,0.34028986]
[1754525548211,4.132,3674.9,3674.8,0.372]
[1754525548664,4.132,3674.9,3674.6,0.372]
[1754525549081,4.132,3674.9,3674.6,0.508]
[1754525549686,4.132,3674.9,3674.7,0.372]
[1754525550014,4.132,3674.9,3674.8,0.372]
[1754525552880,4.132,3674.9,3674.6,0.508]
[1754525553095,4.132,3674.9,3674.7,0.372]
[1754525553924,3.136,3675.1,3674.7,0.372]
[1754525554216,4.132,3675.0,3674.7,0.372]
[1754525555269,2.72079403,3675.4,3674.7,0.372]
[1754525555270,2.72071826,3675.5,3674.7,2.72131058]
[1754525555572,2.72071826,3675.5,3674.6,0.45895157]
[1754525555573,7.131,3675.4,3674.9,0.136]
[1754525555784,7.131,3675.4,3675.0,0.372]
[1754525556606,3.0,3675.4,3675.0,0.372]
[1754525556807,3.0,3675.4,3675.1,0.372]
[1754525556808,4.131,3675.4,3675.1,0.372]
[1754525557009,3.0,3675.6,3675.3,0.136]
[1754525557312,3.0,3675.5,3675.4,0.372]
[1754525557515,3.0,3675.5,3675.4,0.69489215]
[1754525558077,3.0,3675.5,3675.4,0.32289215]
[1754525558679,3.0,3675.5,3675.4,0.69489215]
[1754525558879,3.0,3675.5,3675.4,0.32289215]
[1754525559906,3.9054,3675.5,3675.4,0.32289215]
[1754525560251,3.9054,3675.5,3675.3,0.136]
[1754525560393,0.9054,3675.4,3675.3,0.136]
[1754525560596,3.0,3675.5,3675.3,0.136]
[1754525562991,3.9054,3675.5,3675.3,0.136]
[1754525563329,3.0,3675.5,3675.3,0.136]
[1754525563496,3.0,3675.5,3675.3,0.83090054]
[1754525564249,3.0,3675.5,3675.3,0.45890054]
[1754525564545,3.0,3675.5,3675.3,0.83090054]
[1754525564842,3.0,3675.5,3675.3,0.45890054]
[1754525565909,3.0,3675.5,3675.3,0.83090054]
[1754525566118,3.0,3675.5,3675.3,0.508]
[1754525566428,3.0,3675.5,3675.3,0.136]
[1754525567358,3.9054,3675.5,3675.3,0.136]
[1754525567703,3.0,3675.5,3675.3,0.136]
[1754525567892,0.9054,3675.4,3675.3,0.136]
[1754525568093,0.9054,3675.4,3675.3,0.42170022]
[1754525570724,3.0,3675.5,3675.3,0.42170022]
[1754525571414,3.9084,3675.5,3675.3,0.42170022]
[1754525571719,0.9084,3675.4,3675.3,0.42170022]
[1754525572082,3.0,3675.5,3675.3,0.42170022]
[1754525572816,3.9084,3675.5,3675.3,0.42170022]
[1754525573016,0.9084,3675.4,3675.3,0.42170022]
[1754525574051,0.9084,3675.4,3675.3,0.136]
[1754525581440,0.9084,3675.4,3674.5,2.72139409]
[1754525581642,0.9084,3675.3,3675.0,0.136]
[1754525581814,5.0374,3675.3,3675.0,0.136]
[1754525582139,0.9084,3675.2,3675.0,0.136]
[1754525582717,0.9084,3675.1,3675.0,0.136]
[1754525583154,4.0454,3675.5,3675.0,0.136]
[1754525583436,4.129,3675.3,3675.0,3.22901785]
[1754525583600,4.129,3675.3,3675.1,0.59502349]
[1754525583798,4.129,3675.3,3675.2,0.136]
[1754525584014,8.0384,3675.5,3675.2,0.136]
[1754525584213,7.13,3675.5,3675.2,0.136]
[1754525584412,0.9084,3675.4,3675.2,0.136]
[1754525586041,0.9084,3675.3,3675.2,0.136]
[1754525594310,3.001,3675.5,3675.2,2.85691831]
[1754525594510,3.001,3675.5,3675.2,0.136]
[1754525594757,3.9094,3675.5,3675.4,0.136]
[1754525596054,3.001,3675.5,3675.4,0.136]
[1754525596255,3.454,3675.5,3675.4,0.136]
[1754525596454,3.9094,3675.5,3675.4,0.136]
[1754525619981,3.9299,3675.5,3675.4,0.136]
[1754525621563,3.001,3675.5,3675.4,0.136]
[1754525621888,3.9266,3675.5,3675.4,0.136]
[1754525622897,0.001,3675.5,3675.4,2.85679229]
[1754525623102,0.001,3675.5,3675.4,3.17967152]
[1754525623597,0.001,3675.5,3675.4,3.55167152]
[1754525623765,0.001,3675.5,3675.4,3.17967152]
[1754525625005,0.001,3675.5,3675.4,3.55167152]
[1754525628379,0.001,3675.5,3675.4,7.67767152]
[1754525633026,0.001,3675.5,3675.4,8.22767152]
[1754525635103,0.001,3675.5,3675.4,8.71697152]
[1754525638278,1e-08,3675.5,3675.4,8.71697152]
[1754525640785,1e-08,3675.5,3675.4,16.7156789]
[1754525640986,1e-08,3675.5,3675.4,19.7156789]
[1754525643915,0.001,3676.3,3675.9,0.55]
[1754525644126,0.001,3676.3,3676.2,0.136]
[1754525644333,0.001,3677.4,3676.3,0.55]
[1754525644500,0.001,3677.4,3676.6,2.71990425]
[1754525644700,0.001,3676.7,3676.6,7.52890425]
[1754525644904,0.001,3676.7,3676.6,8.14142872]
[1754525645223,1e-08,3676.7,3676.6,8.51342872]
[1754525645429,1e-08,3676.8,3676.7,3.26983028]
[1754525645853,1e-08,3676.8,3676.7,11.26853766]
[1754525646020,1e-08,3676.8,3676.7,11.64053766]
[1754525646216,1e-08,3676.8,3676.7,11.96341689]
[1754525647096,1e-08,3676.8,3676.7,14.96341689]
[1754525647735,0.001,3677.2,3677.1,3.26953441]
[1754525647922,0.001,3677.2,3677.1,7.52753441]
[1754525648306,1e-08,3677.2,3677.1,15.52624179]
[1754525648525,1e-08,3677.2,3677.1,17.62279969]
[1754525648839,1e-08,3677.2,3677.1,17.73174469]
[1754525650337,0.001,3677.6,3677.5,2.71923861]
[1754525650640,0.001,3677.6,3677.5,6.97723861]
[1754525650810,0.9487,3678.0,3677.8,2.7190168]
[1754525651016,0.9487,3677.9,3677.8,7.5270168]
[1754525651210,0.001,3678.0,3677.9,2.71894287]
[1754525652339,0.001,3678.0,3677.9,6.84094287]
[1754525653030,0.001,3678.0,3677.9,6.94987087]
[1754525653337,0.9487,3678.0,3677.9,7.2727501]
[1754525654442,0.001,3678.0,3677.9,7.2727501]
[1754525655246,0.9487,3678.0,3677.9,7.2727501]
[1754525658758,0.001,3678.0,3677.9,7.2727501]
[1754525658961,0.4594,3678.0,3677.9,3.1507501]
[1754525659106,0.9487,3678.0,3677.9,6.83994287]
[1754525659311,0.9487,3678.0,3677.9,6.83894287]
[1754525660920,0.001,3678.0,3677.9,2.71894287]
[1754525661119,0.9367,3678.0,3677.9,6.83894287]
[1754525661324,0.9367,3678.0,3677.9,7.93910274]
[1754525664227,0.001,3678.0,3677.9,7.93910274]
[1754525664733,0.475,3678.0,3677.9,7.93910274]
[1754525665269,0.001,3678.0,3677.9,7.93910274]
[1754525665577,0.001,3678.0,3677.9,8.42970274]
[1754525668267,0.001,3678.0,3677.9,7.93910274]
[1754525673271,0.001,3678.0,3677.9,16.48781012]
[1754525673576,0.001,3678.0,3677.9,16.97841012]
[1754525674162,0.001,3678.0,3677.9,17.08733612]
[1754525681985,1e-08,3678.0,3677.9,17.08733612]
[1754525684792,1e-08,3678.0,3677.9,17.54603612]
[1754525685391,1e-08,3678.0,3677.9,17.08733612]
[1754525687102,1e-08,3678.0,3677.9,4.47802874]
[1754525687309,0.93570001,3678.0,3677.9,8.59602874]
[1754525690606,0.93570001,3678.0,3677.9,4.47802874]
[1754525690808,0.93570001,3678.0,3677.9,8.59602874]
[1754525694309,0.93570001,3678.0,3677.9,8.73202874]
[1754525696381,0.001,3678.2,3678.1,2.71879503]
[1754525696582,0.001,3678.2,3678.1,8.29107229]
[1754525697126,0.001,3678.2,3678.1,16.39869967]
[1754525697478,0.001,3678.2,3678.1,12.28169967]
[1754525697706,0.001,3678.2,3678.1,16.39869967]
[1754525698348,0.448,3678.2,3678.1,16.39869967]
[1754525698531,0.9184,3678.2,3678.1,16.39869967]
[1754525698841,0.448,3678.2,3678.1,16.39869967]
[1754525700114,0.001,3678.2,3678.1,16.39869967]
[1754525700703,0.001,3678.2,3678.1,12.28169967]
[1754525701317,0.448,3678.2,3678.1,16.39869967]
[1754525701912,0.9184,3678.2,3678.1,16.39869967]
[1754525702234,0.448,3678.2,3678.1,16.39869967]
[1754525702732,0.9184,3678.2,3678.1,8.39999229]
[1754525703038,0.9184,3678.2,3678.1,8.29107229]
[1754525704034,0.9184,3678.2,3678.1,4.17407229]
[1754525704337,0.9184,3678.2,3678.1,8.29107229]
[1754525707238,0.9184,3678.2,3678.1,4.17407229]
[1754525707454,0.9184,3678.2,3678.1,0.136]
[1754525707612,0.9184,3678.2,3678.1,4.252]
[1754525708035,0.9184,3678.2,3678.1,6.97079503]
[1754525708338,0.9184,3678.2,3678.1,0.136]
[1754525708522,0.9184,3678.2,3678.1,4.252]
[1754525709125,0.9184,3678.2,3678.1,6.97079503]
[1754525710104,0.9184,3678.2,3678.1,2.85479503]
[1754525710311,0.9184,3678.2,3678.1,6.97179503]
[1754525712521,0.9184,3678.2,3678.1,4.253]
[1754525712722,0.9184,3678.2,3678.1,0.136]
[1754525713018,0.9184,3678.2,3678.1,4.252]
[1754525713945,0.9184,3678.2,3678.1,0.136]
[1754525714113,0.9184,3678.2,3678.1,4.252]
[1754525714308,0.9184,3678.2,3678.1,6.97079503]
[1754525717555,0.9184,3678.2,3678.1,4.252]
[1754525718745,0.9184,3678.2,3678.1,0.136]
[1754525718916,0.9184,3678.2,3678.1,4.252]
[1754525720345,0.9184,3678.2,3678.1,6.97079503]
[1754525720949,0.001,3678.2,3678.1,6.97079503]
[1754525721457,0.001,3678.2,3678.1,7.44859503]
[1754525721755,0.001,3678.2,3678.1,8.94602849]
[1754525724754,0.001,3678.2,3678.1,9.05495549]
[1754525726923,0.001,3678.2,3678.1,8.94602849]
[1754525733825,0.001,3678.2,3678.1,8.50922849]
[1754525735063,0.001,3678.2,3678.1,8.94602849]
[1754525735357,0.001,3678.2,3678.1,3.91542849]
[1754525735565,0.4912,3678.2,3678.1,8.03042849]
[1754525735775,0.943,3678.2,3678.1,8.03042849]
[1754525736078,0.001,3678.2,3678.1,8.03042849]
[1754525736933,0.4528,3678.2,3678.1,8.03042849]
[1754525737871,0.001,3678.2,3678.1,8.03042849]
[1754525738838,0.943,3678.2,3678.1,8.03042849]
[1754525740466,0.4528,3678.2,3678.1,8.03042849]
[1754525740664,0.001,3678.2,3678.1,8.03042849]
[1754525743143,0.943,3678.2,3678.1,0.136]
[1754525743337,0.943,3678.2,3678.1,4.25]
[1754525744248,0.943,3678.2,3678.1,6.96879503]
[1754525747677,0.943,3678.2,3678.1,2.85479503]
[1754525747986,0.943,3678.2,3678.1,4.251]
[1754525748483,0.943,3678.2,3678.1,6.96979503]
[1754525749781,0.943,3678.2,3678.1,4.251]
[1754525750288,0.943,3678.2,3678.1,6.96979503]
[1754525751050,0.4528,3678.2,3678.1,6.96979503]
[1754525751982,0.001,3678.2,3678.1,6.96979503]
[1754525752168,0.001,3678.2,3678.1,7.46309503]
[1754525752493,0.001,3678.2,3678.1,6.96979503]
[1754525752852,0.9197,3678.2,3678.1,6.96979503]
[1754525755893,0.9197,3678.2,3678.1,4.251]
[1754525756389,0.9197,3678.2,3678.0,2.72085535]
[1754525756390,0.9197,3678.2,3678.0,0.002]
[1754525756695,1.28273316,3678.1,3678.0,0.002]
[1754525757357,4.00152819,3678.1,3678.0,0.002]
[1754525757557,1.28273316,3678.1,3678.0,0.002]
[1754525761387,7.00152819,3678.1,3678.0,0.002]
[1754525761895,2.71909073,3677.7,3677.3,3.972]
[1754525762095,3.01828424,3677.6,3677.1,0.138]
[1754525762389,0.136,3677.5,3677.1,4.116]
[1754525762593,1.0547,3677.5,3677.1,0.002]
[1754525763096,0.136,3677.5,3677.1,0.002]
[1754525763264,0.136,3677.5,3677.3,0.4933]
[1754525763590,3.0,3678.0,3677.3,0.6293]
[1754525763591,0.61,3677.8,3677.3,0.6293]
[1754525763812,1.2797,3677.7,3677.3,0.136]
[1754525764097,0.9187,3677.6,3677.3,0.136]
[1754525764396,0.361,3677.7,3677.3,0.136]
[1754525764567,1.2797,3677.7,3677.3,0.6293]
[1754525764773,0.9187,3677.6,3677.3,0.6293]
[1754525764969,0.9187,3677.6,3677.3,3.34867661]
[1754525765881,0.4447,3677.6,3677.3,3.34867661]
[1754525766195,3.0,3678.0,3677.4,3.21259975]
[1754525766382,0.65578446,3677.9,3677.5,0.4933]
[1754525766583,3.65578446,3677.9,3677.5,0.4933]
[1754525766897,0.4447,3677.8,3677.5,0.4933]
[1754525767498,0.9187,3677.7,3677.3,6.97036846]
[1754525767694,0.4447,3677.6,3677.3,7.46366846]
[1754525768197,0.474,3677.7,3677.3,7.46366846]
[1754525768563,0.9187,3677.7,3677.3,7.46366846]
[1754525768758,0.65578446,3677.9,3677.3,4.251]
[1754525768963,0.9187,3677.7,3677.3,7.46365438]
[1754525769166,0.68747179,3677.8,3677.4,3.67730635]
[1754525769560,0.136,3678.0,3677.5,0.4933]
[1754525769765,0.001,3678.2,3677.7,0.136]
[1754525770100,0.001,3678.2,3677.9,0.136]
[1754525770296,0.001,3678.2,3677.9,2.85493098]
[1754525770489,0.001,3678.2,3678.0,3.67685921]
[1754525770859,0.001,3678.2,3678.1,0.4933]
[1754525772196,0.001,3678.2,3677.9,0.6293]
[1754525772387,0.001,3678.2,3677.9,4.7433]
[1754525772583,0.001,3678.2,3677.9,7.46223877]
[1754525773121,0.001,3678.2,3677.9,6.96893877]
[1754525773282,0.001,3678.2,3677.9,4.7433]
[1754525773481,0.001,3678.2,3677.9,7.4622124]
[1754525773683,0.001,3678.2,3678.0,3.21216126]
[1754525774215,0.001,3678.2,3678.1,0.4933]
[1754525775410,0.001,3678.2,3677.9,4.25]
[1754525776108,0.001,3678.2,3678.0,0.4933]
[1754525777911,0.001,3678.2,3677.9,4.25]
[1754525777912,3.9187,3678.1,3677.5,4.114]
[1754525778215,3.0,3677.9,3677.5,4.114]
[1754525778514,0.9187,3677.8,3677.5,4.114]
[1754525778910,0.9187,3677.8,3677.4,0.138]
[1754525779217,0.9187,3677.7,3677.4,4.252]
[1754525779518,0.136,3677.9,3677.4,4.252]
[1754525779519,0.9187,3677.6,3677.4,4.252]
[1754525780784,0.9187,3677.6,3677.4,0.002]
[1754525780785,0.4533,3677.5,3677.4,0.002]
[1754525781020,1.31250954,3677.5,3677.4,0.002]
[1754525781402,0.81980954,3677.5,3677.4,0.002]
[1754525781605,1.31250954,3677.5,3677.4,0.002]
[1754525785915,0.81980954,3677.5,3677.4,0.002]
[1754525786116,0.36650954,3677.5,3677.4,0.002]
[1754525787213,0.36650954,3677.5,3677.4,0.4929]
[1754525787423,0.136,3677.6,3677.4,0.4929]
[1754525787721,0.136,3677.6,3677.4,0.002]
[1754525788018,1.082,3677.6,3677.4,0.002]
[1754525788715,0.5893,3677.6,3677.4,0.002]
[1754525790222,0.946,3677.5,3677.4,0.002]
[1754525790719,1.13341166,3677.5,3677.4,0.002]
[1754525790910,1.62611166,3677.5,3677.4,0.002]
[1754525792791,1.13341166,3677.5,3677.4,0.002]
[1754525793822,0.68011166,3677.5,3677.4,0.002]
[1754525794028,2.8551694,3677.6,3677.4,0.002]
[1754525794692,0.4533,3677.5,3677.4,0.002]
[1754525795800,0.946,3677.5,3677.4,0.002]
[1754525796221,2.8551784,3677.6,3677.4,0.002]
[1754525796222,3.136,3677.6,3677.4,0.002]
[1754525796530,7.25,3677.6,3677.4,0.4929]
[1754525796732,7.25,3677.6,3677.4,0.002]
[1754525796938,7.7033,3677.6,3677.4,0.002]
[1754525797124,1.09151034,3677.5,3677.4,0.002]
[1754525797436,4.29125111,3677.5,3677.4,0.002]
[1754525797637,2.0647125,3677.5,3677.4,0.002]
[1754525798136,4.78395111,3677.5,3677.4,0.002]
[1754525798302,7.78395111,3677.5,3677.4,0.002]
[1754525798501,7.75674895,3677.5,3677.4,0.002]
[1754525800622,4.09151034,3677.5,3677.4,0.002]
[1754525801606,6.83795111,3677.5,3677.4,0.002]
[1754525801800,7.75674895,3677.5,3677.4,0.002]
[1754525807948,6.81074895,3677.5,3677.4,0.002]
[1754525808111,7.75674895,3677.5,3677.4,0.002]
[1754525808609,3.2693865,3677.3,3677.2,0.002]
[1754525808804,10.41058866,3677.3,3677.2,0.002]
[1754525809041,5.71946045,3677.2,3677.1,0.002]
[1754525809243,6.91946629,3677.2,3677.1,0.002]
[1754525809729,7.12632261,3677.2,3677.1,0.002]
[1754525810040,9.64447717,3677.2,3677.1,0.002]
[1754525810425,14.30847717,3677.2,3677.1,0.002]
[1754525811740,14.41749317,3677.2,3677.1,0.002]
[1754525818757,14.55349317,3677.2,3677.1,0.002]
[1754525819256,21.73349317,3677.2,3677.1,0.002]
[1754525820747,21.73271339,3677.2,3677.1,0.002]
[1754525826061,21.24001339,3677.2,3677.1,0.002]
[1754525826661,20.23771339,3677.2,3677.1,0.4761]
[1754525826956,20.23771339,3677.2,3677.1,0.9334]
[1754525827166,19.98448733,3677.2,3677.1,0.9334]
[1754525828143,19.98448733,3677.2,3677.1,0.4761]
[1754525828657,19.98448733,3677.2,3677.1,0.9334]
[1754525831454,15.86948733,3677.2,3677.1,0.9334]
[1754525831668,19.98448733,3677.2,3677.1,0.9334]
[1754525832163,15.66263101,3677.2,3677.1,0.9334]
[1754525832360,19.77763101,3677.2,3677.1,0.9334]
[1754525832861,19.66861501,3677.2,3677.1,0.9334]
[1754525834235,19.66861501,3677.2,3677.1,0.4761]
[1754525834430,19.66861501,3677.2,3677.1,0.002]
[1754525834760,20.58381501,3677.2,3677.1,0.002]
[1754525834960,20.69282001,3677.2,3677.1,0.002]
[1754525835162,21.44469872,3677.2,3677.1,0.002]
[1754525838066,6.26968234,3676.9,3676.8,0.002]
[1754525838362,18.51838972,3676.9,3676.8,1e-08]
[1754525838665,26.61358972,3676.9,3676.8,1e-08]
[1754525839183,26.61358972,3676.9,3676.7,0.002]
[1754525839461,11.54870738,3676.4,3675.9,0.002]
[1754525839677,18.3837596,3676.4,3675.9,0.002]
[1754525839829,18.5197596,3676.4,3675.9,0.002]
[1754525840029,19.4571596,3676.4,3675.9,0.002]
[1754525840874,19.59593358,3676.4,3675.9,0.002]
[1754525841073,21.06853133,3676.4,3675.9,0.002]
[1754525842575,21.17757133,3676.4,3675.9,0.002]
[1754525843270,21.17757133,3676.4,3675.9,0.4732]
[1754525844773,7.0828662,3676.4,3675.9,0.002]
[1754525844973,7.2188662,3676.4,3676.3,0.9188]
[1754525845173,10.2188662,3676.4,3676.3,0.9188]
[1754525845376,7.08009222,3676.4,3676.3,0.9188]
[1754525845740,17.26009222,3676.4,3676.3,0.9188]
[1754525846969,17.15105222,3676.4,3676.3,0.9188]
[1754525847371,3.0,3676.3,3675.6,2.85664424]
[1754525847573,10.03605424,3676.4,3675.7,0.55773439]
[1754525847574,3.0,3676.1,3675.7,0.55773439]
[1754525847768,3.0,3675.9,3675.7,3.2782957]
[1754525848347,3.0,3675.9,3675.7,0.55773439]
[1754525849172,3.0,3675.9,3675.7,3.27830121]
[1754525849484,3.0,3675.9,3675.8,0.9168]
[1754525850982,3.0,3675.9,3675.8,3.63729621]
[1754525851188,4.115,3676.0,3675.9,2.7204222]
[1754525851383,4.115,3676.0,3675.9,3.1660222]
[1754525851684,4.115,3676.0,3675.9,0.9168]
[1754525853057,4.115,3676.1,3675.9,0.9168]
[1754525853257,4.115,3676.1,3676.0,0.9168]
[1754525854587,3.0,3676.3,3676.0,0.87823862]
[1754525854885,7.18,3676.4,3676.1,3.63701297]
[1754525855093,7.18,3676.4,3676.2,3.63699833]
[1754525855284,7.18,3676.4,3676.2,2.72019833]
[1754525855477,10.18,3676.4,3676.3,0.9168]
[1754525857696,3.0,3676.4,3676.3,0.9168]
[1754525859864,3.0,3676.4,3676.3,0.4712]
[1754525863502,3.001,3676.4,3676.3,0.4712]
[1754525863974,3.001,3676.4,3676.3,0.9168]
[1754525864170,3.001,3676.4,3676.3,0.4712]
[1754525864403,0.001,3676.4,3676.2,0.136]
[1754525864575,0.001,3676.4,3676.3,0.9168]
[1754525865674,0.001,3676.4,3676.3,0.4712]